[Event "Hungarian U20 Junior-ch Men 2024"]
[Site "Budapest"]
[Date "2024.03.17"]
[Round "7.5"]
[White "Gombocz, Ferenc Jr."]
[Black "Szikszai, Bertalan"]
[Result "1-0"]
[ECO "A20"]
[WhiteElo "2351"]
[BlackElo "2312"]
[Annotator "TA"]
[PlyCount "131"]
[EventDate "2024.03.10"]
[EventType "tourn"]
[EventCountry "HUN"]
[SourceTitle "playchess.com"]
[Source "ChessBase"]
[SourceQuality "1"]
[TimeControl "40/5400+30:1800+30"]

{[%evp 36,131,414,322,306,301,294,302,307,294,287,261,265,237,265,265,260,253,325,285,289,221,254,235,238,257,254,253,275,268,309,311,287,231,290,272,293,287,293,277,291,280,345,335,316,325,376,300,773,773,773,766,766,731,754,762,747,741,753,751,702,657,641,624,540,360,1654,1654,1654,1654,1654,1654,1654,1653,1588,1601,1509,1482,1220,516,882,1352,1656,844,1506,1508,1369,1327,942,931,3150,3191,2006,1747,9355,8886,5475,5252]} 1. c4 {[%emt 0:00:37]} e5 {[%emt 0:00:47]} 2. g3 {[%emt 0:00:20]} Nf6 {[%emt 0:00:08]} 3. Bg2 {[%emt 0:00:09]} c6 {[%emt 0:00:10]} 4. d4 {[%emt 0:00:15]} e4 {[%emt 0:00:11]} 5. Nc3 {[%emt 0:01:21]} d5 {[%emt 0:00:15]} 6. a3 {[%emt 0:01:24] A20: English Opening: 1...e5.} h6 {[%emt 0:10:45]} 7. f3 {[%emt 0:02:18]} exf3 {[%emt 0:17:33]} 8. Nxf3 {[%emt 0:00:12]} dxc4 {[%emt 0:00:58]} 9. e4 {[%emt 0:01:19]} Be6 {[%emt 0:01:33]} 10. O-O {[%emt 0:02:25]} Be7 {[%emt 0:06:32]} 11. h3 $146 {[%emt 0:06:17]} ({Predecessor:} 11. Nh4 Bg4 12. Bf3 Bh3 13. Bg2 Bg4 14. Qd2 O-O 15. h3 Be6 16. Nf5 Bxf5 17. Rxf5 {1-0 Boesenberg,E (2460)-Roberts,A (2312) Champion's League 2021/C7 email}) 11... O-O {[%emt 0:02:07]} 12. Kh2 {[%emt 0:03:18]} Qa5 {[%emt 0:06:03]} 13. Nh4 {[%emt 0:05:14]} Rd8 {[%emt 0:01:40]} 14. Be3 {[%emt 0:21:42]} Nbd7 {[%emt 0:05:49]} 15. Qe2 {[%emt 0:14:03]} Nf8 {[%emt 0:13:34]} 16. Nf5 {[%emt 0:01:29]} Bxf5 {[%emt 0:00:17]} 17. Rxf5 {[%emt 0:00:07]} Qb6 {[%emt 0:04:39]} 18. Raf1 {[%emt 0:08:28]} Ne6 {[%emt 0:04:13]} (18... Ng6 $142 19. e5 (19. Qxc4 Qxb2 20. Bc1 $16)) 19. d5 {[%emt 0:01:10]} ({Weaker is} 19. Qxc4 Qxb2 20. Nd1 Qxa3 $16) 19... Nd4 {[%emt 0:00:36]} 20. Qxc4 {[%emt 0:03:28]} c5 {[%emt 0:00:50] [#]} 21. Bxd4 $1 {[%emt 0:00:19]} cxd4 {[%emt 0:00:11]} 22. Na4 {[%emt 0:00:09]} Qa6 {[%emt 0:03:07]} 23. Qxa6 {[%emt 0:05:34]} bxa6 {[%emt 0:00:02] [#]} 24. d6 $1 {[%emt 0:00:14]} (24. e5 Nxd5 25. Rxf7 Bf6 $16) 24... Bxd6 {[%emt 0:01:32]} 25. e5 {[%emt 0:01:16]} Rac8 {[%emt 0:00:15]} 26. exf6 {[%emt 0:01:27]} Rc4 {[%emt 0:03:55]} 27. b3 {[%emt 0:00:22]} Rc2 {[%emt 0:00:11]} 28. Rd5 {[%emt 0:01:33]} Bxg3+ {[%emt 0:03:41]} 29. Kxg3 {[%emt 0:00:12]} Rxg2+ {[%emt 0:00:05]} 30. Kxg2 {[%emt 0:00:05]} Rxd5 {[%emt 0:00:04]} 31. fxg7 {[%emt 0:01:08]} Rg5+ {[%emt 0:02:20]} 32. Kh2 {[%emt 0:01:30]} Re5 {[%emt 0:01:47]} 33. Rf3 {[%emt 0:00:37]} Kxg7 {[%emt 0:01:04]} 34. Rd3 {[%emt 0:00:27]} Re4 {[%emt 0:08:08]} 35. Nc5 {[%emt 0:02:22]} Re5 {[%emt 0:00:16]} 36. Nxa6 {[%emt 0:03:21]} Ra5 {[%emt 0:00:06]} 37. Nb4 {[%emt 0:00:13]} Rxa3 {[%emt 0:00:15]} 38. Kg3 {[%emt 0:00:25]} a5 {[%emt 0:01:44]} 39. Nc2 {[%emt 0:01:11]} Ra2 {[%emt 0:00:02]} 40. Nxd4 {[%emt 0:00:00]} a4 {[%emt 0:00:00]} 41. bxa4 {[%emt 0:05:24]} Rxa4 $2 {[%emt 0:03:31]} (41... Kg6 42. Nc6 Rxa4 43. Rd6+ Kg7) 42. Ne2 $18 {[%emt 0:00:06]} Rb4 {[%emt 0:02:02]} 43. Nf4 {[%emt 0:00:10]} Rb5 {[%emt 0:01:23]} 44. Rd4 {[%emt 0:01:01]} Kf6 {[%emt 0:00:43]} 45. Rd5 {[%emt 0:02:53]} Rb1 {[%emt 0:00:22]} 46. Ra5 {[%emt 0:02:16]} Rg1+ {[%emt 0:00:40]} 47. Kh4 {[%emt 0:00:29]} Rb1 {[%emt 0:09:11]} 48. Nh5+ {[%emt 0:00:27]} Kg6 {[%emt 0:00:04]} 49. Ra6+ {[%emt 0:03:36]} Kh7 {[%emt 0:00:07]} 50. Ra4 {[%emt 0:00:08]} Kg8 $2 {[%emt 0:01:21]} (50... Rb6 51. Rg4 Kh8) 51. Rg4+ $18 {[%emt 0:00:57]} Kf8 {[%emt 0:00:06]} 52. Nf6 {[%emt 0:00:35]} Rb5 {[%emt 0:01:10]} 53. Nh7+ {[%emt 0:01:55]} Ke7 {[%emt 0:00:08]} 54. Re4+ {[%emt 0:00:03]} Kd6 {[%emt 0:00:51]} 55. Nf6 {[%emt 0:00:09]} Rb3 {[%emt 0:03:00]} 56. Re8 {[%emt 0:02:17]} Rf3 {[%emt 0:02:28]} 57. Ng4 {[%emt 0:01:11]} h5 {[%emt 0:00:18]} 58. Nh6 {[%emt 0:00:52]} (58. Kxh5 Rxh3+ 59. Kg5 Rg3 $14) 58... f6 {[%emt 0:02:29]} 59. Nf7+ {[%emt 0:01:29]} Kd5 {[%emt 0:00:18]} 60. Nh8 {[%emt 0:00:57]} Kd4 {[%emt 0:01:37]} 61. Ng6 {[%emt 0:00:22]} Kd5 {[%emt 0:02:22]} 62. Re1 {[%emt 0:01:59]} Kd6 {[%emt 0:00:52]} 63. Re4 {[%emt 0:00:23]} Ra3 {[%emt 0:01:40]} 64. Nf4 {[%emt 0:00:28]} f5 {[%emt 0:01:31]} 65. Re6+ {[%emt 0:00:19]} Kd7 {[%emt 0:00:04]} 66. Re5 {[%emt 0:00:08]} ({Stronger than} 66. Kxh5 Rf3 $11) 1-0

[Event "Hungarian U20 Junior-ch Men 2024"]
[Site "Budapest"]
[Date "2024.03.18"]
[Round "8.1"]
[White "Karacsonyi, Gellert"]
[Black "Szikszai, Bertalan"]
[Result "1-0"]
[ECO "B90"]
[WhiteElo "2386"]
[BlackElo "2312"]
[Annotator "RC"]
[PlyCount "120"]
[EventDate "2024.03.10"]
[EventType "tourn"]
[EventCountry "HUN"]
[SourceTitle "playchess.com"]
[Source "ChessBase"]
[SourceQuality "1"]
[TimeControl "40/5400+30:1800+30"]

1. e4 {[%emt 0:00:32]} c5 {[%emt 0:00:49]} 2. Nf3 {[%emt 0:00:05]} d6 {[%emt 0:00:21]} 3. d4 {[%emt 0:00:03]} cxd4 {[%emt 0:00:13]} 4. Nxd4 {[%emt 0:00:04]} Nf6 {[%emt 0:00:11]} 5. Nc3 {[%emt 0:00:03]} a6 {[%emt 0:00:08]} 6. Rg1 {[%emt 0:00:07]} b5 {[%emt 0:02:43]} 7. a4 {[%emt 0:00:06]} b4 {[%emt 0:01:09]} 8. Nd5 {[%emt 0:00:05]} e6 {[%emt 0:07:27]} 9. Nxf6+ {[%emt 0:00:08]} Qxf6 {[%emt 0:00:39]} 10. Be3 {[%emt 0:00:05]} Bb7 {[%emt 0:02:38]} 11. Qd2 {[%emt 0:00:22]} Nd7 {[%emt 0:23:29]} 12. Qxb4 {[%emt 0:13:33]} Rb8 {[%emt 0:08:13]} 13. Qd2 {[%emt 0:00:55]} Be7 {[%emt 0:00:46]} 14. f3 {[%emt 0:02:21]} O-O {[%emt 0:00:57]} 15. g4 {[%emt 0:07:40]} Qh4+ {[%emt 0:10:29]} 16. Qf2 {[%emt 0:08:15]} d5 {[%emt 0:00:07]} 17. exd5 {[%emt 0:08:10]} Bxd5 {[%emt 0:00:12]} 18. Qxh4 {[%emt 0:01:11]} Bxh4+ {[%emt 0:00:05]} 19. Bf2 {[%emt 0:00:04]} Be7 {[%emt 0:15:40]} 20. b3 {[%emt 0:08:03]} Bb4+ {[%emt 0:01:24]} 21. Ke2 {[%emt 0:00:10]} e5 {[%emt 0:00:45]} 22. Nf5 {[%emt 0:01:55]} Rfc8 {[%emt 0:01:11]} 23. Ne3 {[%emt 0:00:30]} Be6 {[%emt 0:01:43]} 24. Bg2 {[%emt 0:05:22]} Bc5 {[%emt 0:04:41]} 25. Rgc1 {[%emt 0:00:46]} Bd4 {[%emt 0:01:23]} 26. Rab1 {[%emt 0:02:26]} Rc7 {[%emt 0:04:36]} 27. Nd1 {[%emt 0:02:53]} Rbc8 {[%emt 0:03:13]} 28. Kd2 {[%emt 0:01:06]} Nc5 {[%emt 0:01:25]} 29. Bxd4 {[%emt 0:11:32]} exd4 {[%emt 0:00:04]} 30. Bf1 {[%emt 0:00:06]} a5 {[%emt 0:04:45]} 31. Nf2 {[%emt 0:04:27]} Bxb3 {[%emt 0:01:30]} 32. cxb3 {[%emt 0:00:44]} Nxb3+ {[%emt 0:00:03]} 33. Rxb3 {[%emt 0:00:06]} Rxc1 {[%emt 0:00:03]} 34. Rb8 {[%emt 0:08:51]} Rxb8 {[%emt 0:00:04]} 35. Kxc1 {[%emt 0:00:02]} Rb3 {[%emt 0:01:29]} 36. Be2 {[%emt 0:00:01]} Kf8 {[%emt 0:01:15]} 37. Bd1 {[%emt 0:03:56]} Rc3+ {[%emt 0:01:10]} 38. Kd2 {[%emt 0:00:33]} Ke7 {[%emt 0:00:46]} 39. Ne4 {[%emt 0:00:04]} Ra3 {[%emt 0:01:32]} 40. Nc5 {[%emt 0:00:00]} Kf6 {[%emt 0:00:00]} 41. Nb7 {[%emt 0:12:20]} Ke5 {[%emt 0:11:52]} 42. Nxa5 {[%emt 0:06:44]} Kd5 {[%emt 0:00:20]} 43. h4 {[%emt 0:01:35]} h6 {[%emt 0:13:48]} 44. h5 {[%emt 0:00:25]} f6 {[%emt 0:02:17]} 45. Nb7 {[%emt 0:04:50]} Ra2+ {[%emt 0:00:44]} 46. Bc2 {[%emt 0:02:39]} Ke5 {[%emt 0:01:18]} 47. Nc5 {[%emt 0:06:47]} Kf4 {[%emt 0:00:19]} 48. Kc1 {[%emt 0:00:01]} Ra3 {[%emt 0:02:00]} 49. Bb3 {[%emt 0:00:01]} Ra1+ {[%emt 0:00:30]} 50. Kb2 {[%emt 0:00:01]} Rf1 {[%emt 0:01:45]} 51. a5 {[%emt 0:04:49]} Rf2+ {[%emt 0:00:01]} 52. Bc2 {[%emt 0:01:51]} Re2 {[%emt 0:00:38]} 53. a6 {[%emt 0:00:17]} Re7 {[%emt 0:00:16]} 54. Be4 {[%emt 0:01:34]} Ke3 {[%emt 0:00:43]} 55. Kb3 {[%emt 0:00:48]} d3 {[%emt 0:01:25]} 56. Nxd3 {[%emt 0:00:16]} Kd4 {[%emt 0:00:25]} 57. Nb4 {[%emt 0:01:13]} Kc5 {[%emt 0:00:13]} 58. Kc3 {[%emt 0:00:05]} Rc7 {[%emt 0:00:28]} 59. Bb7 {[%emt 0:01:20]} Kb5+ {[%emt 0:00:38]} 60. Kd4 {[%emt 0:01:00]} Rc4+ {[%emt 0:00:55]} 1-0

[Event "Hungarian U20 Junior-ch Men 2024"]
[Site "Budapest"]
[Date "2024.03.18"]
[Round "8.2"]
[White "Pasztor, Balazs"]
[Black "Gombocz, Ferenc Jr."]
[Result "1/2-1/2"]
[ECO "C93"]
[WhiteElo "2406"]
[BlackElo "2351"]
[Annotator "TA"]
[PlyCount "129"]
[EventDate "2024.03.10"]
[EventType "tourn"]
[EventCountry "HUN"]
[SourceTitle "playchess.com"]
[Source "ChessBase"]
[SourceQuality "1"]
[TimeControl "40/5400+30:1800+30"]

{[%evp 49,129,36,24,29,35,25,22,0,0,0,0,0,0,0,0,-33,-8,-8,155,170,157,154,308,303,311,321,674,436,550,560,506,506,462,411,368,361,350,161,126,131,192,189,192,87,87,0,0,0,0,0,0,0,0,0,0,0,0,0,0,0,0,0,0,0,0,0,0,0,0,0,0,0,0,0,0,0,0,0,0,0,0,0]} 1. e4 {[%emt 0:00:35]} e5 {[%emt 0:00:34]} 2. Nf3 {[%emt 0:00:06]} Nc6 {[%emt 0:00:04]} 3. Bb5 {[%emt 0:00:09]} a6 {[%emt 0:00:06]} 4. Ba4 {[%emt 0:00:04]} Nf6 {[%emt 0:00:07]} 5. O-O {[%emt 0:00:07]} Be7 {[%emt 0:00:05]} 6. Re1 {[%emt 0:00:07]} b5 {[%emt 0:00:09]} 7. Bb3 {[%emt 0:00:07]} d6 {[%emt 0:00:04]} 8. c3 {[%emt 0:00:05]} O-O {[%emt 0:00:09]} 9. h3 {[%emt 0:00:04]} h6 {[%emt 0:00:06] 9...Bb7 ist aktuell in Mode.} 10. d4 {[%emt 0:00:24]} Re8 {[%emt 0:00:15]} 11. a3 {[%emt 0:00:51] C93: Spanische Partie (Smyslow-Variante).} Bf8 {[%emt 0:11:34]} 12. Ba2 {[%emt 0:00:46]} Bb7 {[%emt 0:03:28]} 13. d5 {[%emt 0:00:10]} Ne7 {[%emt 0:00:27]} 14. b3 {[%emt 0:00:11]} c6 {[%emt 0:08:25]} 15. c4 {[%emt 0:00:06]} cxd5 {[%emt 0:09:17]} 16. cxd5 {[%emt 0:00:18]} Nh7 $146 {[%emt 0:00:13]} ({Predecessor:} 16... a5 17. Nc3 b4 18. Nb5 Qb8 19. a4 Nd7 20. Nd2 Ng6 21. Nc4 Ba6 22. h4 Nc5 {½-½ Lagarde,M (2579)-Erdos,V (2583) Mitropa Cup Mali Losinj 2023 (4.1)}) 17. Nc3 {[%emt 0:10:01]} f5 {[%emt 0:01:16]} 18. exf5 {[%emt 0:05:53]} Nf6 {[%emt 0:06:05]} 19. b4 {[%emt 0:06:26]} Nxf5 {[%emt 0:00:09]} 20. Qd3 {[%emt 0:05:54]} Qd7 {[%emt 0:05:17]} 21. Bb2 {[%emt 0:05:06]} Ne7 {[%emt 0:08:52]} 22. Rad1 {[%emt 0:02:45]} g6 {[%emt 0:16:18]} 23. Nh4 {[%emt 0:12:19]} g5 {[%emt 0:00:18]} 24. Nf3 {[%emt 0:03:20]} Bg7 {[%emt 0:00:37]} 25. Ne4 {[%emt 0:08:21]} Nxe4 $1 {[%emt 0:01:42]} 26. Qxe4 {[%emt 0:01:13]} Qf5 $1 {[%emt 0:00:24]} 27. Qe3 {[%emt 0:03:59]} Qf7 {[%emt 0:04:12]} 28. Qd2 {[%emt 0:05:42]} Ng6 {[%emt 0:01:50]} 29. Nh2 {[%emt 0:03:53]} Nf4 {[%emt 0:02:29]} 30. Nf1 {[%emt 0:02:33]} Bc8 {[%emt 0:07:34]} 31. Ng3 {[%emt 0:01:41]} Rf8 {[%emt 0:01:02]} 32. Re3 {[%emt 0:02:48]} Bxh3 {[%emt 0:02:20]} 33. gxh3 {[%emt 0:02:01]} Qd7 $2 {[%emt 0:00:03]} (33... Nxh3+ $11 34. Kg2 Qd7) 34. Ne4 $16 {[%emt 0:01:55]} Nxh3+ {[%emt 0:00:04]} 35. Kh2 {[%emt 0:01:32]} g4 $2 {[%emt 0:00:04]} (35... Nf4 $16) 36. Rxh3 $18 {[%emt 0:02:26]} gxh3 {[%emt 0:00:04]} 37. Rg1 {[%emt 0:01:12]} Rf3 $2 {[%emt 0:02:42]} (37... Kh8 38. Qd3 Qe7) 38. Qxh6 {[%emt 0:06:48]} Raf8 {[%emt 0:00:26]} 39. Qe6+ {[%emt 0:00:24]} (39. Qxd6 $2 Rxf2+ 40. Nxf2 Rxf2+ (40... Qxd6 $2 41. Ne4 $19) 41. Kg3 Qxd6 $19) 39... R8f7 {[%emt 0:02:05]} 40. Rg3 {[%emt 0:00:00]} (40. Qxd6 $2 Rxf2+ 41. Kh1 Qxd6 (41... Rxb2 42. Nf6+ Rxf6 43. Qxd7 Rg2 44. d6+ Kh8 45. Qxh3+ Rh6 46. Kxg2 Rxh3 47. Kxh3) 42. Nxd6 Rxb2 $17) 40... R3f4 {[%emt 0:00:00]} 41. Qxd7 {[%emt 0:08:48]} ({Jedoch nicht} 41. Nxd6 Rxf2+ 42. Kxh3 Qxe6+ 43. dxe6 Re7) 41... Rxd7 {[%emt 0:07:19]} 42. f3 {[%emt 0:00:26]} Kf8 {[%emt 0:04:13]} 43. Kxh3 {[%emt 0:00:47]} (43. Bb1 $142) 43... Bh6 $18 {[%emt 0:01:20]} 44. Kg2 {[%emt 0:04:13]} Rf5 {[%emt 0:00:57]} (44... Rh4 $16) 45. Bb1 $18 {[%emt 0:01:21]} Bf4 {[%emt 0:03:03]} 46. Nf2 {[%emt 0:09:47]} (46. Nc5 $18 {bietet bessere Gewinnchancen.} dxc5 47. Bxf5 Rxd5 48. Bc3 (48. Rg8+ Kf7 $16)) 46... Rh5 $16 {[%emt 0:01:21]} 47. Rh3 {[%emt 0:02:34]} (47. Rg6 $16) 47... Rg7+ $11 {[%emt 0:01:07]} 48. Ng4 {[%emt 0:00:10]} Rxh3 {[%emt 0:00:03]} 49. Kxh3 {[%emt 0:00:05]} Rc7 {[%emt 0:00:06]} 50. Be4 {[%emt 0:04:42]} Ke7 {[%emt 0:04:19]} 51. Kg2 {[%emt 0:00:27]} Bd2 {[%emt 0:02:18]} 52. Bf5 {[%emt 0:03:13]} Rc4 {[%emt 0:02:44]} 53. Bd3 {[%emt 0:04:07]} Rc7 {[%emt 0:01:37]} 54. Be4 {[%emt 0:00:16]} Rc8 {[%emt 0:02:01]} 55. Kf1 {[%emt 0:03:48]} Bc1 {[%emt 0:00:30]} 56. Bf5 {[%emt 0:00:14]} Rc7 {[%emt 0:01:13]} 57. Bxc1 {[%emt 0:00:26]} Rxc1+ {[%emt 0:00:04]} 58. Ke2 {[%emt 0:00:06]} Rc3 {[%emt 0:00:36]} 59. Ne3 {[%emt 0:00:41]} Rxa3 {[%emt 0:00:15]} ({Nur nicht} 59... Kf6 $2 60. Be6 $18) 60. Bg4 {[%emt 0:00:56]} Kd8 {[%emt 0:00:58]} 61. Nf5 {[%emt 0:00:17]} Kc7 {[%emt 0:00:44]} 62. Ng7 {[%emt 0:00:23]} Kd8 {[%emt 0:01:02]} 63. Nf5 {[%emt 0:00:53]} Kc7 {[%emt 0:00:04]} 64. Ng7 {[%emt 0:00:49]} Kd8 {[%emt 0:00:29]} 65. Nf5 {[%emt 0:00:36]} 1/2-1/2

[Event "Hungarian U20 Junior-ch Men 2024"]
[Site "Budapest"]
[Date "2024.03.18"]
[Round "8.3"]
[White "Juhasz, Agoston"]
[Black "Pasti, Aron"]
[Result "1-0"]
[ECO "C50"]
[WhiteElo "2406"]
[BlackElo "2373"]
[Annotator "RC"]
[PlyCount "197"]
[EventDate "2024.03.10"]
[EventType "tourn"]
[EventCountry "HUN"]
[SourceTitle "playchess.com"]
[Source "ChessBase"]
[SourceQuality "1"]
[TimeControl "40/5400+30:1800+30"]

1. e4 {[%emt 0:00:33]} e5 {[%emt 0:00:40]} 2. Nf3 {[%emt 0:00:10]} Nc6 {[%emt 0:00:05]} 3. Bc4 {[%emt 0:00:26]} Nf6 {[%emt 0:00:11]} 4. d3 {[%emt 0:00:11]} Bc5 {[%emt 0:00:22]} 5. Bg5 h6 {[%emt 0:04:10]} 6. Bh4 {[%emt 0:01:38]} g5 {[%emt 0:07:39]} 7. Bg3 {[%emt 0:00:06]} d6 {[%emt 0:00:11]} 8. c3 {[%emt 0:01:08]} a6 {[%emt 0:08:25]} 9. Nbd2 {[%emt 0:02:33]} Ba7 {[%emt 0:08:51]} 10. a4 {[%emt 0:06:03]} Qe7 {[%emt 0:14:50]} 11. b4 {[%emt 0:11:50]} Be6 {[%emt 0:11:37]} 12. O-O {[%emt 0:08:28]} Nd8 {[%emt 0:14:04]} 13. Re1 {[%emt 0:05:00]} Bxc4 {[%emt 0:02:53]} 14. Nxc4 {[%emt 0:00:53]} Nh5 {[%emt 0:03:35]} 15. d4 {[%emt 0:03:50]} Nxg3 {[%emt 0:02:43]} 16. hxg3 {[%emt 0:02:31]} f6 {[%emt 0:02:33]} 17. b5 {[%emt 0:09:21]} Ne6 {[%emt 0:01:33]} 18. Rb1 {[%emt 0:05:01]} axb5 {[%emt 0:03:02]} 19. Rxb5 {[%emt 0:02:16]} Nd8 {[%emt 0:01:26]} 20. Ne3 {[%emt 0:18:26]} Qe6 {[%emt 0:04:44]} 21. a5 {[%emt 0:06:50]} Kf7 {[%emt 0:01:19]} 22. Qd3 {[%emt 0:03:47]} Kg6 {[%emt 0:00:49]} 23. Rd1 {[%emt 0:04:33]} c6 {[%emt 0:02:00]} 24. Rb2 {[%emt 0:00:47]} Bb8 {[%emt 0:00:01]} 25. d5 {[%emt 0:01:23]} Qe7 {[%emt 0:02:31]} 26. Nc4 {[%emt 0:02:53]} Ra6 {[%emt 0:01:49]} 27. Ne1 {[%emt 0:01:34]} Bc7 {[%emt 0:00:37]} 28. Ra1 {[%emt 0:00:32]} b5 {[%emt 0:00:09]} 29. Ne3 {[%emt 0:00:42]} Rxa5 {[%emt 0:01:03]} 30. Nf5 {[%emt 0:00:19]} Qf7 {[%emt 0:01:01]} 31. Rxa5 {[%emt 0:00:29]} Bxa5 {[%emt 0:00:02]} 32. Ra2 {[%emt 0:01:17]} Bb6 {[%emt 0:00:34]} 33. g4 {[%emt 0:00:56]} h5 {[%emt 0:00:26]} 34. gxh5+ {[%emt 0:00:32]} Rxh5 {[%emt 0:00:01]} 35. Ra6 {[%emt 0:00:29]} Qb7 {[%emt 0:00:49]} 36. Ra1 {[%emt 0:00:20]} Bc5 {[%emt 0:00:35]} 37. dxc6 {[%emt 0:00:37]} Nxc6 {[%emt 0:00:01]} 38. Qd5 {[%emt 0:00:25]} Qh7 {[%emt 0:00:50]} 39. Ng3 Ne7 40. Qe6 {[%emt 0:00:00]} Rh6 {[%emt 0:00:00]} 41. Nd3 {[%emt 0:06:40]} Qf7 {[%emt 0:03:51]} 42. Qd7 {[%emt 0:08:16]} Rh7 {[%emt 0:10:48]} 43. Nxc5 {[%emt 0:04:05]} dxc5 {[%emt 0:00:52]} 44. Ra7 {[%emt 0:00:30]} Qg8 {[%emt 0:08:16]} 45. Qxb5 {[%emt 0:02:42]} Qc8 {[%emt 0:00:26]} 46. Qb6 {[%emt 0:04:53]} Qc6 {[%emt 0:02:20]} 47. Qd8 {[%emt 0:02:58]} Qc8 {[%emt 0:00:08]} 48. Qd6 {[%emt 0:00:58]} Qc6 {[%emt 0:01:32]} 49. Qd8 {[%emt 0:00:29]} Qc8 {[%emt 0:00:16]} 50. Qd1 {[%emt 0:01:33]} Qe6 {[%emt 0:02:24]} 51. Rc7 {[%emt 0:01:13]} c4 {[%emt 0:01:56]} 52. Qa4 {[%emt 0:01:22]} Rh8 {[%emt 0:00:46]} 53. Qa7 {[%emt 0:00:56]} Re8 {[%emt 0:01:11]} 54. Rd7 {[%emt 0:00:26]} g4 {[%emt 0:00:54]} 55. Qc7 {[%emt 0:00:49]} Kg5 {[%emt 0:00:01]} 56. Rd6 {[%emt 0:00:30]} Qc8 {[%emt 0:00:46]} 57. Qb6 {[%emt 0:00:06]} Rf8 {[%emt 0:00:02]} 58. Qe3+ {[%emt 0:00:50]} Kg6 {[%emt 0:00:01]} 59. Qe2 {[%emt 0:00:05]} Kg5 {[%emt 0:00:11]} 60. Qd2+ {[%emt 0:00:11]} Kg6 {[%emt 0:00:03]} 61. Qd1 {[%emt 0:01:17]} Kg5 {[%emt 0:00:17]} 62. Qc1+ {[%emt 0:00:33]} Kg6 {[%emt 0:00:01]} 63. Qd1 {[%emt 0:00:04]} Kg5 {[%emt 0:00:00]} 64. Rd7 Re8 65. Qd2+ {[%emt 0:01:47]} Kg6 {[%emt 0:00:03]} 66. Qd1 {[%emt 0:00:35]} Kg5 {[%emt 0:00:03]} 67. Qd2+ {[%emt 0:00:47]} Kg6 {[%emt 0:00:01]} 68. Qd6 {[%emt 0:00:23]} Qc6 {[%emt 0:03:08]} 69. Nf5 {[%emt 0:00:34]} Qxe4 {[%emt 0:00:00]} 70. Nxe7+ {[%emt 0:00:00]} Kg5 {[%emt 0:00:05]} 71. Qd2+ {[%emt 0:00:20]} Qf4 {[%emt 0:00:06]} 72. Qxf4+ {[%emt 0:00:55]} exf4 {[%emt 0:00:01]} 73. Rd5+ {[%emt 0:00:39]} Kh6 {[%emt 0:00:01]} 74. Nf5+ {[%emt 0:00:17]} Kg6 {[%emt 0:00:01]} 75. Kf1 {[%emt 0:00:31]} Ra8 {[%emt 0:00:12]} 76. Nh4+ {[%emt 0:00:28]} Kf7 {[%emt 0:00:04]} 77. Ke2 {[%emt 0:00:50]} Ra2+ {[%emt 0:01:13]} 78. Rd2 {[%emt 0:00:02]} Ra3 {[%emt 0:00:00]} 79. Rc2 {[%emt 0:00:44]} Ra5 {[%emt 0:01:05]} 80. Rb2 {[%emt 0:00:28]} Re5+ {[%emt 0:01:31]} 81. Kf1 {[%emt 0:00:03]} Rh5 {[%emt 0:00:04]} 82. g3 {[%emt 0:00:05]} f3 {[%emt 0:00:03]} 83. Rb7+ {[%emt 0:01:24]} Ke6 {[%emt 0:00:01]} 84. Rb6+ {[%emt 0:00:06]} Kf7 {[%emt 0:02:25]} 85. Rb7+ {[%emt 0:00:19]} Ke6 {[%emt 0:00:02]} 86. Rb6+ Kf7 87. Rc6 {[%emt 0:00:13]} Ra5 {[%emt 0:00:19]} 88. Ke1 {[%emt 0:01:08]} f5 {[%emt 0:04:58]} 89. Rxc4 {[%emt 0:00:35]} Ke6 {[%emt 0:01:33]} 90. Rf4 {[%emt 0:00:38]} Ra1+ {[%emt 0:00:37]} 91. Kd2 {[%emt 0:00:02]} Ra2+ {[%emt 0:00:03]} 92. Ke3 {[%emt 0:00:32]} Re2+ {[%emt 0:00:11]} 93. Kd3 {[%emt 0:00:20]} Rxf2 {[%emt 0:00:03]} 94. Nxf5 {[%emt 0:00:29]} Rg2 {[%emt 0:00:01]} 95. Ne3 {[%emt 0:01:35]} Rxg3 {[%emt 0:00:06]} 96. Rxg4 {[%emt 0:00:14]} Rh3 {[%emt 0:00:01]} 97. Rf4 {[%emt 0:00:13]} Ke5 {[%emt 0:00:07]} 98. Rf5+ {[%emt 0:00:05]} Ke6 {[%emt 0:00:12]} 99. Ke4 {[%emt 0:00:32]} 1-0